fUSD/lending_fUSD_20241221
["ID","MTS","AMOUNT","RATE_DAILY","PERIOD"]
[346198349,1734773444560,-500.0,0.00019178,2]
[346198350,1734773444569,-500.0,0.00019178,2]
[346198351,1734773444581,-500.0,0.00019178,2]
[346198352,1734773444590,-500.0,0.00019178,2]
[346198353,1734773444599,-500.0,0.00019178,2]
[346198354,1734773444608,-602.77,0.00019178,2]
[346198355,1734773444618,-504.82540694,0.00019178,2]
[346198356,1734773444627,-510.29346945,0.00019178,2]
[346198357,1734773444637,-845.78,0.00019178,2]
[346198358,1734773444647,-501.70459132,0.00019178,2]
[346198359,1734773444656,-1302.53,0.00019178,2]
[346198360,1734773444666,-500.0,0.00019178,2]
[346198361,1734773444676,-500.0,0.00019178,2]
[346198362,1734773444686,-500.0,0.00019178,2]
[346198363,1734773444695,-1369.09,0.00019178,2]
[346198364,1734773444704,-500.0,0.00019178,2]
[346198365,1734773444713,-500.0,0.00019178,2]
[346198366,1734773444723,-500.0,0.00019178,2]
[346198367,1734773444732,-500.0,0.00019178,2]
[346198368,1734773444743,-500.0,0.00019178,2]
[346198369,1734773444752,-515.94771563,0.00019178,2]
[346198370,1734773444762,-502.18880231,0.00019178,2]
[346198371,1734773444771,-962.8,0.00019178,2]
[346198372,1734773444780,-809.27,0.00019178,2]
[346198373,1734773444789,-502.99749142,0.00019178,2]
[346198374,1734773444798,-500.0,0.00019178,2]
[346198375,1734773444808,-500.0,0.00019178,2]
[346198376,1734773444817,-500.0,0.00019178,2]
[346198377,1734773444826,-500.0,0.00019178,2]
[346198378,1734773444835,-500.0,0.00019178,2]
[346198379,1734773444845,-500.0,0.00019178,2]
[346198380,1734773444854,-1375.81,0.00019178,2]
[346198381,1734773444864,-500.0,0.00019178,2]
[346198382,1734773444873,-500.68388892,0.00019178,2]
[346198383,1734773444882,-503.57442226,0.00019178,2]
[346198384,1734773444892,-541.05,0.00019178,2]
[346198385,1734773444901,-890.86,0.00019178,2]
[346198386,1734773444911,-500.0,0.00019178,2]
[346198387,1734773444920,-500.0,0.00019178,2]
[346198388,1734773444929,-500.0,0.00019178,2]
[346198389,1734773444938,-500.0,0.00019178,2]
[346198390,1734773444947,-500.0,0.00019178,2]
[346198391,1734773444957,-500.78027493,0.00019178,2]
[346198392,1734773444967,-500.0,0.00019178,2]
[346198393,1734773444976,-500.0,0.00019178,2]
[346198394,1734773444985,-500.0,0.00019178,2]
[346198395,1734773444995,-384.27142649,0.00019178,2]
[346198396,1734773445005,-962.15,0.00019178,2]
[346198397,1734773445014,-500.0,0.00019178,2]
[346198398,1734773445024,-500.0,0.00019178,2]
[346198399,1734773445033,-500.0,0.00019178,2]
[346198400,1734773445043,-647.94134434,0.00019178,2]
[346198401,1734773445053,-1179.31,0.00019178,2]
[346198402,1734773445063,-512.1,0.00019178,2]
[346198403,1734773445073,-1057.42,0.00019178,2]
[346198404,1734773445082,-500.0,0.00019178,2]
[346198405,1734773445092,-369.26861394,0.00019178,2]
[346198406,1734773445101,-808.61,0.00019178,2]
[346198407,1734773445110,-1000.37,0.00019178,2]
[346198408,1734773445119,-500.0,0.00019178,2]
[346198409,1734773445128,-500.0,0.00019178,2]
[346198410,1734773445138,-500.0,0.00019178,2]
[346198411,1734773445147,-1022.01,0.00019178,2]
[346198412,1734773445157,-500.0,0.00019178,2]
[346198413,1734773445167,-1003.14,0.00019178,2]
[346198414,1734773445177,-768.28,0.00019178,2]
[346198415,1734773445188,-500.0,0.00019178,2]
[346198416,1734773445198,-500.0,0.00019178,2]
[346198417,1734773445208,-500.0,0.00019178,2]
[346198418,1734773445217,-500.0,0.00019178,2]
[346198419,1734773445230,-500.0,0.00019178,2]
[346198420,1734773445240,-500.0,0.00019178,2]
[346198421,1734773445252,-500.0,0.00019178,2]
[346198422,1734773445261,-655.6,0.00019178,2]
[346198423,1734773445271,-603.92,0.00019178,2]
[346198424,1734773445281,-910.93,0.00019178,2]
[346198425,1734773445291,-500.0,0.00019178,2]
[346198426,1734773445300,-500.0,0.00019178,2]
[346198427,1734773445311,-693.18,0.00019178,2]
[346198428,1734773445320,-500.0,0.00019178,2]
[346198429,1734773445330,-1405.78,0.00019178,2]
[346198430,1734773445339,-500.0,0.00019178,2]
[346198431,1734773445349,-504.09606646,0.00019178,2]
[346198432,1734773445358,-1661.19,0.00019178,2]
[346198433,1734773445368,-500.0,0.00019178,2]
[346198434,1734773445378,-500.0,0.00019178,2]
[346198435,1734773445388,-569.58,0.00019178,2]
[346198436,1734773445397,-569.88172707,0.00019178,2]
[346198437,1734773445406,-500.0,0.00019178,2]
[346198438,1734773445416,-500.0,0.00019178,2]
[346198439,1734773445425,-625.66,0.00019178,2]
[346198440,1734773445435,-500.0,0.00019178,2]
[346198441,1734773445444,-500.0,0.00019178,2]
[346198442,1734773445453,-500.0,0.00019178,2]
[346198443,1734773445463,-500.72338011,0.00019178,2]
[346198444,1734773445472,-15384.71,0.00019178,2]
[346198445,1734773445482,-500.0,0.00019178,2]
[346198446,1734773445491,-500.0,0.00019178,2]
[346198447,1734773445501,-500.0,0.00019178,2]
[346198448,1734773445511,-815.77,0.00019178,2]
[346198449,1734773445520,-500.0,0.00019178,2]
[346198450,1734773445529,-888.28,0.00019178,2]
[346198451,1734773445538,-1379.55,0.00019178,2]
[346198452,1734773445547,-7587.43,0.00019178,2]
[346198453,1734773445556,-500.0,0.00019178,2]
[346198454,1734773445566,-584.89,0.00019178,2]
[346198455,1734773445575,-500.0,0.00019178,2]
[346198456,1734773445584,-500.0,0.00019178,2]
[346198457,1734773445594,-1621.1,0.00019178,2]
[346198458,1734773445603,-500.0,0.00019178,2]
[346198459,1734773445613,-500.0,0.00019178,2]
[346198460,1734773445622,-502.02964329,0.00019178,2]
[346198461,1734773445631,-500.0,0.00019178,2]
[346198462,1734773445640,-501.12578391,0.00019178,2]
[346198463,1734773445650,-635.11,0.00019178,2]
[346198464,1734773445659,-519.97,0.00019178,2]
[346198466,1734773445669,-500.0,0.00019178,2]
[346198467,1734773445679,-594.39,0.00019178,2]
[346198469,1734773445689,-500.0,0.00019178,2]
[346198471,1734773445698,-981.0,0.00019178,2]
[346198472,1734773445708,-500.0,0.00019178,2]
[346198473,1734773445718,-540.89,0.00019178,2]
[346198474,1734773445727,-500.0,0.00019178,2]
[346198475,1734773445736,-649.72,0.00019178,2]
[346198476,1734773445747,-500.0,0.00019178,2]
[346198478,1734773445756,-500.0,0.00019178,2]
[346198480,1734773445766,-500.0,0.00019178,2]
[346198481,1734773445775,-1791.49,0.00019178,2]
[346198482,1734773445784,-500.0,0.00019178,2]
[346198483,1734773445794,-632.59,0.00019178,2]
[346198484,1734773445803,-500.0,0.00019178,2]
[346198485,1734773445813,-1983.68,0.00019178,2]
[346198486,1734773445822,-500.0,0.00019178,2]
[346198487,1734773445831,-500.0,0.00019178,2]
[346198488,1734773445841,-500.0,0.00019178,2]
[346198489,1734773445850,-500.0,0.00019178,2]
[346198490,1734773445864,-500.0,0.00019178,2]
[346198491,1734773445873,-500.0,0.00019178,2]
[346198492,1734773445883,-500.0,0.00019178,2]
[346198493,1734773445892,-500.0,0.00019178,2]
[346198494,1734773445902,-500.0,0.00019178,2]
[346198495,1734773445912,-500.0,0.00019178,2]
[346198496,1734773445922,-500.0,0.00019178,2]
[346198497,1734773445932,-2588.55,0.00019178,2]
[346198498,1734773445942,-500.0,0.00019178,2]
[346198499,1734773445951,-500.0,0.00019178,2]
[346198500,1734773445962,-500.0,0.00019178,2]
[346198501,1734773445972,-1085.44,0.00019178,2]
[346198502,1734773445982,-500.0,0.00019178,2]
[346198503,1734773445993,-500.0,0.00019178,2]
[346198504,1734773446003,-885.13,0.00019178,2]
[346198505,1734773446012,-1108.63,0.00019178,2]
[346198506,1734773446022,-557.35,0.00019178,2]
[346198507,1734773446031,-1207.07,0.00019178,2]
[346198508,1734773446041,-500.0,0.00019178,2]
[346198509,1734773446050,-500.0,0.00019178,2]
[346198510,1734773446060,-500.0,0.00019178,2]
[346198511,1734773446069,-500.0,0.00019178,2]
[346198512,1734773446078,-500.0,0.00019178,2]
[346198513,1734773446088,-3265.96,0.00019178,2]
[346198514,1734773446097,-510.60550234,0.00019178,2]
[346198515,1734773446106,-500.0,0.00019178,2]
[346198516,1734773446116,-1587.64,0.00019178,2]
[346198517,1734773446125,-877.61,0.00019178,2]
[346198518,1734773446135,-828.22,0.00019178,2]
[346198519,1734773446144,-500.0,0.00019178,2]
[346198520,1734773446153,-500.0,0.00019178,2]
[346198521,1734773446163,-500.0,0.00019178,2]
[346198522,1734773446172,-500.0,0.00019178,2]
[346198523,1734773446182,-500.0,0.00019178,2]
[346198524,1734773446191,-500.0,0.00019178,2]
[346198525,1734773446201,-501.04170529,0.00019178,2]
[346198526,1734773446210,-741.63,0.00019178,2]
[346198527,1734773446220,-500.0,0.00019178,2]
[346198528,1734773446233,-500.0,0.00019178,2]
[346198529,1734773446243,-828.21,0.00019178,2]
[346198530,1734773446252,-500.0,0.00019178,2]
[346198531,1734773446261,-570.11,0.00019178,2]
[346198532,1734773446272,-500.0,0.00019178,2]
[346198533,1734773446283,-500.0,0.00019178,2]
[346198534,1734773446292,-500.0,0.00019178,2]
[346198535,1734773446303,-500.0,0.00019178,2]
[346198536,1734773446312,-500.0,0.00019178,2]
[346198537,1734773446322,-500.0,0.00019178,2]
[346198538,1734773446331,-250.67684916,0.00019178,2]
[346198539,1734773446341,-541.73,0.00019178,2]
[346198540,1734773446350,-500.0,0.00019178,2]
[346198541,1734773446360,-500.0,0.00019178,2]
[346198542,1734773446370,-500.0,0.00019178,2]
[346198543,1734773446379,-932.89,0.00019178,2]
[346198544,1734773446389,-500.0,0.00019178,2]
[346198545,1734773446398,-1129.8,0.00019178,2]
[346198546,1734773446408,-573.7,0.00019178,2]
[346198547,1734773446417,-500.0,0.00019178,2]
[346198548,1734773446427,-500.0,0.00019178,2]
[346198549,1734773446436,-1331.05,0.00019178,2]
[346198550,1734773446446,-500.0,0.00019178,2]
[346198551,1734773446456,-1360.88,0.00019178,2]
[346198552,1734773446465,-501.71823654,0.00019178,2]
[346198553,1734773446475,-500.0,0.00019178,2]
[346198554,1734773446484,-1044.55,0.00019178,2]
[346198555,1734773446493,-2053.76,0.00019178,2]
[346198556,1734773446503,-500.0,0.00019178,2]
[346198557,1734773446512,-1900.92,0.00019178,2]
[346198558,1734773446522,-500.0,0.00019178,2]
[346198559,1734773446531,-500.0,0.00019178,2]
[346198560,1734773446540,-500.0,0.00019178,2]
[346198561,1734773446549,-500.0,0.00019178,2]
[346198562,1734773446559,-2895.88,0.00019178,2]
[346198563,1734773446569,-500.0,0.00019178,2]
[346198564,1734773446578,-500.0,0.00019178,2]
[346198565,1734773446589,-2461.23,0.00019178,2]
[346198566,1734773446599,-632.84,0.00019178,2]
[346198567,1734773446608,-212.62062009,0.00019178,2]
[346198568,1734773446617,-500.0,0.00019178,2]
[346198569,1734773446627,-2694.25,0.00019178,2]
[346198570,1734773446637,-500.0,0.00019178,2]
[346198571,1734773446646,-500.0,0.00019178,2]
[346198572,1734773446655,-500.0,0.00019178,2]
[346198573,1734773446665,-500.0,0.00019178,2]
[346198574,1734773446674,-1168.89,0.00019178,2]
[346198575,1734773446683,-710.98,0.00019178,2]
[346198576,1734773446692,-500.0,0.00019178,2]
[346198577,1734773446702,-500.0,0.00019178,2]
[346198578,1734773446711,-729.31,0.00019178,2]
[346198579,1734773446721,-1694.89,0.00019178,2]
[346198580,1734773446730,-500.0,0.00019178,2]
[346198581,1734773446739,-682.43,0.00019178,2]
[346198582,1734773446753,-1187.51,0.00019178,2]
[346198583,1734773446763,-503.23149407,0.00019178,2]
[346198584,1734773446772,-1237.16,0.00019178,2]
[346198585,1734773446781,-708.66,0.00019178,2]
[346198586,1734773446792,-545.43,0.00019178,2]
[346198587,1734773446802,-1021.5,0.00019178,2]
[346198588,1734773446812,-501.36629704,0.00019178,2]
[346198589,1734773446821,-501.55265149,0.00019178,2]
[346198590,1734773446831,-500.0,0.00019178,2]
[346198591,1734773446840,-621.25,0.00019178,2]
[346198592,1734773446849,-500.0,0.00019178,2]
[346198593,1734773446859,-427.64166492,0.00019178,2]
[346198594,1734773446868,-693.27,0.00019178,2]
[346198595,1734773446877,-500.0,0.00019178,2]
[346198596,1734773446887,-500.0,0.00019178,2]
[346198597,1734773446896,-500.0,0.00019178,2]
[346198598,1734773447092,-2780.15,0.00019178,2]
[346198599,1734773447103,-500.0,0.00019178,2]
[346198600,1734773447112,-500.0,0.00019178,2]
[346198601,1734773447121,-784.83,0.00019178,2]
[346198602,1734773447131,-500.0,0.00019178,2]
[346198603,1734773447141,-500.0,0.00019178,2]
[346198604,1734773447151,-500.0,0.00019178,2]
[346198605,1734773447161,-3200.14,0.00019178,2]
[346198606,1734773447171,-500.0,0.00019178,2]
[346198607,1734773447180,-3460.69,0.00019178,2]
[346198608,1734773447189,-500.0,0.00019178,2]
[346198609,1734773447199,-500.0,0.00019178,2]
[346198610,1734773447209,-500.0,0.00019178,2]
[346198611,1734773447217,-2823.93,0.00019178,2]
[346198612,1734773447230,-500.0,0.00019178,2]
[346198613,1734773447239,-1842.46,0.00019178,2]
[346198614,1734773447251,-500.0,0.00019178,2]
[346198615,1734773447260,-790.83,0.00019178,2]
[346198616,1734773447270,-500.0,0.00019178,2]
[346198617,1734773447280,-500.0,0.00019178,2]
[346198618,1734773447289,-500.0,0.00019178,2]
[346198619,1734773447299,-1567.9,0.00019178,2]
[346198620,1734773447310,-500.0,0.00019178,2]
[346198621,1734773447320,-871.54,0.00019178,2]
[346198622,1734773447331,-500.0,0.00019178,2]
[346198623,1734773447342,-500.0,0.00019178,2]
[346198624,1734773447353,-685.93,0.00019178,2]
[346198625,1734773447363,-685.93,0.00019178,2]
[346198626,1734773447372,-500.0,0.00019178,2]
[346198627,1734773447382,-1851.68,0.00019178,2]
[346198628,1734773447392,-500.0,0.00019178,2]
[346198629,1734773447402,-500.0,0.00019178,2]
[346198630,1734773447411,-1465.88,0.00019178,2]
[346198631,1734773447421,-500.0,0.00019178,2]
[346198632,1734773447430,-794.89,0.00019178,2]
[346198633,1734773447439,-1367.48,0.00019178,2]
[346198634,1734773447449,-3584.85,0.00019178,2]
[346198635,1734773447459,-500.0,0.00019178,2]
[346198636,1734773447468,-500.0,0.00019178,2]
[346198637,1734773447478,-500.0,0.00019178,2]
[346198638,1734773447489,-500.0,0.00019178,2]
[346198639,1734773447500,-500.0,0.00019178,2]
[346198640,1734773447510,-500.0,0.00019178,2]
[346198641,1734773447520,-500.0,0.00019178,2]
[346198642,1734773447529,-500.0,0.00019178,2]
[346198643,1734773447539,-2813.95,0.00019178,2]
[346198644,1734773447549,-506.82,0.00019178,2]
[346198645,1734773447558,-572.38,0.00019178,2]
[346198646,1734773447568,-500.0,0.00019178,2]
[346198647,1734773447578,-500.0,0.00019178,2]
[346198648,1734773447587,-500.0,0.00019178,2]
[346198649,1734773447597,-500.0,0.00019178,2]
[346198650,1734773447607,-707.8,0.00019178,2]
[346198651,1734773447616,-3748.8,0.00019178,2]
[346198652,1734773447626,-625.29,0.00019178,2]
[346198653,1734773447639,-500.0,0.00019178,2]
[346198654,1734773447649,-500.0,0.00019178,2]
[346198655,1734773447659,-900.78,0.00019178,2]
[346198656,1734773447669,-500.0,0.00019178,2]
[346198657,1734773447678,-500.0,0.00019178,2]
[346198658,1734773447688,-500.0,0.00019178,2]
[346198659,1734773447698,-500.0,0.00019178,2]
[346198660,1734773447707,-500.0,0.00019178,2]
[346198661,1734773447716,-1097.85,0.00019178,2]
[346198662,1734773447726,-2789.81,0.00019178,2]
[346198663,1734773447735,-504.68022337,0.00019178,2]
[346198664,1734773447745,-756.9,0.00019178,2]
[346198665,1734773447755,-500.0,0.00019178,2]
[346198666,1734773447765,-500.0,0.00019178,2]
[346198667,1734773447774,-930.55,0.00019178,2]
[346198668,1734773447784,-500.0,0.00019178,2]
[346198669,1734773447794,-500.0,0.00019178,2]
[346198670,1734773447803,-500.0,0.00019178,2]
[346198671,1734773447813,-500.0,0.00019178,2]
[346198672,1734773447822,-500.0,0.00019178,2]
[346198673,1734773447832,-909.54,0.00019178,2]
[346198674,1734773447841,-500.0,0.00019178,2]
[346198675,1734773447850,-500.0,0.00019178,2]
[346198676,1734773447860,-1694.4,0.00019178,2]
[346198677,1734773447869,-500.0,0.00019178,2]
[346198678,1734773447879,-500.0,0.00019178,2]
[346198679,1734773447888,-500.0,0.00019178,2]
[346198680,1734773447898,-500.0,0.00019178,2]
[346198681,1734773447908,-500.0,0.00019178,2]
[346198682,1734773447918,-911.05,0.00019178,2]
[346198683,1734773447927,-724.3,0.00019178,2]
[346198684,1734773447937,-500.0,0.00019178,2]
[346198685,1734773447946,-2330.29,0.00019178,2]
[346198686,1734773447955,-3781.43,0.00019178,2]
[346198687,1734773447965,-1261.37,0.00019178,2]
[346198688,1734773447974,-500.0,0.00019178,2]
[346198689,1734773447983,-500.0,0.00019178,2]
[346198690,1734773447993,-500.0,0.00019178,2]
[346198691,1734773448002,-2082.75,0.00019178,2]
[346198692,1734773448014,-991.07,0.00019178,2]
[346198693,1734773448023,-500.0,0.00019178,2]
[346198694,1734773448033,-500.0,0.00019178,2]
[346198695,1734773448043,-500.0,0.00019178,2]
[346198696,1734773448052,-500.0,0.00019178,2]
[346198697,1734773448062,-500.0,0.00019178,2]
[346198698,1734773448071,-500.0,0.00019178,2]
[346198699,1734773448081,-500.0,0.00019178,2]
[346198700,1734773448090,-958.49,0.00019178,2]
[346198701,1734773448099,-9686.77,0.00019178,2]
[346198702,1734773448109,-500.0,0.00019178,2]
[346198703,1734773448119,-410.40569319,0.00019178,2]
[346198704,1734773448128,-1882.98,0.00019178,2]
[346198705,1734773448138,-562.21422936,0.00019178,2]
[346198706,1734773448147,-500.0,0.00019178,2]
[346198707,1734773448156,-6034.06,0.00019178,2]
[346198708,1734773448166,-2607.23,0.00019178,2]
[346198709,1734773448175,-500.0,0.00019178,2]
[346198710,1734773448185,-500.0,0.00019178,2]
[346198711,1734773448194,-500.0,0.00019178,2]
[346198712,1734773448204,-500.0,0.00019178,2]
[346198713,1734773448214,-507.28718981,0.00019178,2]
[346198714,1734773448227,-1501.37,0.00019178,2]
[346198715,1734773448239,-500.0,0.00019178,2]
[346198716,1734773448249,-314.42034097,0.00019178,2]
[346198717,1734773448258,-1764.07,0.00019178,2]
[346198718,1734773448270,-500.0,0.00019178,2]
[346198719,1734773448279,-500.0,0.00019178,2]
[346198720,1734773448289,-5371.31,0.00019178,2]
[346198721,1734773448299,-1482.95,0.00019178,2]
[346198722,1734773448308,-1579.5,0.00019178,2]
[346198723,1734773448318,-500.0,0.00019178,2]
[346198724,1734773448327,-500.0,0.00019178,2]
[346198725,1734773448338,-849.58,0.00019178,2]
[346198726,1734773448348,-500.0,0.00019178,2]
[346198727,1734773448357,-6231.42,0.00019178,2]
[346198728,1734773448367,-500.0,0.00019178,2]
[346198729,1734773448376,-500.0,0.00019178,2]
[346198730,1734773448385,-500.0,0.00019178,2]
[346198731,1734773448395,-500.0,0.00019178,2]
[346198732,1734773448404,-500.0,0.00019178,2]
[346198733,1734773448414,-764.29,0.00019178,2]
[346198734,1734773448423,-500.0,0.00019178,2]
[346198735,1734773448432,-500.0,0.00019178,2]
[346198736,1734773448442,-500.0,0.00019178,2]
[346198737,1734773448452,-514.12487427,0.00019178,2]
[346198738,1734773448461,-500.0,0.00019178,2]
[346198739,1734773448471,-500.0,0.00019178,2]
[346198740,1734773448481,-500.0,0.00019178,2]
[346198741,1734773448490,-2094.42,0.00019178,2]
[346198742,1734773448500,-500.0,0.00019178,2]
[346198743,1734773448511,-500.0,0.00019178,2]
[346198744,1734773448520,-1010.69,0.00019178,2]
[346198745,1734773448530,-751.14,0.00019178,2]
[346198746,1734773448539,-3462.44,0.00019178,2]
[346198747,1734773448549,-500.0,0.00019178,2]
[346198748,1734773448559,-3160.9,0.00019178,2]
[346198749,1734773448568,-500.0,0.00019178,2]
[346198750,1734773448578,-500.0,0.00019178,2]
[346198751,1734773448588,-500.0,0.00019178,2]
[346198752,1734773448598,-24645.27,0.00019178,2]
[346198753,1734773448608,-8247.4,0.00019178,2]
[346198754,1734773448618,-492.65885906,0.00019178,2]
[346198755,1734773448627,-500.0,0.00019178,2]
[346198756,1734773448637,-500.0,0.00019178,2]
[346198757,1734773448648,-500.0,0.00019178,2]
[346198758,1734773448658,-500.0,0.00019178,2]
[346198759,1734773448668,-500.0,0.00019178,2]
[346198760,1734773448678,-6261.44,0.00019178,2]
[346198761,1734773448687,-1656.5,0.00019178,2]
[346198762,1734773448697,-781.22,0.00019178,2]
[346198763,1734773448706,-500.0,0.00019178,2]
[346198764,1734773448716,-500.0,0.00019178,2]
[346198765,1734773448725,-3393.2,0.00019178,2]
[346198766,1734773448735,-500.0,0.00019178,2]
[346198767,1734773448745,-500.0,0.00019178,2]
[346198768,1734773448755,-500.0,0.00019178,2]
[346198769,1734773448765,-500.0,0.00019178,2]
[346198770,1734773448775,-500.0,0.00019178,2]
[346198771,1734773448785,-1877.49,0.00019178,2]
[346198772,1734773448794,-500.0,0.00019178,2]
[346198773,1734773448804,-500.0,0.00019178,2]
[346198774,1734773448814,-2000.0,0.00019178,2]
[346198775,1734773448823,-500.0,0.00019178,2]
[346198776,1734773448836,-2708.81,0.00019178,2]
[346198777,1734773448845,-500.0,0.00019178,2]
[346198778,1734773448854,-1267.07,0.00019178,2]
[346198779,1734773448862,-511.59835371,0.00019178,2]
[346198780,1734773448871,-1040.82,0.00019178,2]
[346198781,1734773448880,-767.73,0.00019178,2]
[346198782,1734773448889,-500.0,0.00019178,2]
[346198783,1734773448898,-500.0,0.00019178,2]
[346198784,1734773448908,-200.0,0.00019178,2]
[346198785,1734773448918,-500.0,0.00019178,2]
[346198786,1734773448927,-562.79,0.00019178,2]
[346198787,1734773448939,-501.98465362,0.00019178,2]
[346198788,1734773448948,-500.0,0.00019178,2]
[346198789,1734773448957,-155.07259,0.00019178,2]
[346198790,1734773448966,-154.14021,0.00019178,2]
[346198791,1734773448976,-502.49915153,0.00019178,2]
[346198792,1734773448986,-8117.57,0.00019178,2]
[346198793,1734773448996,-500.0,0.00019178,2]
[346198794,1734773449009,-500.0,0.00019178,2]
[346198795,1734773449019,-500.0,0.00019178,2]
[346198796,1734773449029,-1296.7,0.00019178,2]
[346198797,1734773449039,-3164.99,0.00019178,2]
[346198798,1734773449049,-2412.38,0.00019178,2]
[346198799,1734773449059,-500.0,0.00019178,2]
[346198800,1734773449069,-704.84,0.00019178,2]
[346198801,1734773449078,-589.2,0.00019178,2]
[346198802,1734773449088,-2899.73,0.00019178,2]
[346198803,1734773449098,-500.0,0.00019178,2]
[346198804,1734773449107,-502.89186066,0.00019178,2]
[346198805,1734773449117,-862.32,0.00019178,2]
[346198806,1734773449126,-500.0,0.00019178,2]
[346198807,1734773449135,-500.0,0.00019178,2]
[346198808,1734773449145,-500.0,0.00019178,2]
[346198809,1734773449154,-500.0,0.00019178,2]
[346198810,1734773449164,-500.0,0.00019178,2]
[346198811,1734773449174,-812.4,0.00019178,2]
[346198812,1734773449184,-500.0,0.00019178,2]
[346198813,1734773449194,-634.56,0.00019178,2]
[346198814,1734773449203,-500.0,0.00019178,2]
[346198815,1734773449212,-768.33,0.00019178,2]
[346198816,1734773449224,-1896.12,0.00019178,2]
[346198817,1734773449234,-690.88,0.00019178,2]
[346198818,1734773449244,-500.0,0.00019178,2]
[346198819,1734773449255,-500.0,0.00019178,2]
[346198820,1734773449266,-1858.22,0.00019178,2]
[346198821,1734773449276,-502.65628166,0.00019178,2]
[346198822,1734773449285,-884.99,0.00019178,2]
[346198823,1734773449295,-500.0,0.00019178,2]
[346198824,1734773449305,-503.32923532,0.00019178,2]
[346198825,1734773449315,-500.0,0.00019178,2]
[346198826,1734773449324,-500.0,0.00019178,2]
[346198827,1734773449334,-500.0,0.00019178,2]
[346198828,1734773449344,-501.48986171,0.00019178,2]
[346198829,1734773449354,-1376.83,0.00019178,2]
[346198830,1734773449363,-500.0,0.00019178,2]
[346198831,1734773449373,-500.0,0.00019178,2]
[346198832,1734773449383,-534.2,0.00019178,2]
[346198833,1734773449392,-500.0,0.00019178,2]
[346198834,1734773449401,-573.61,0.00019178,2]
[346198835,1734773449411,-500.0,0.00019178,2]
[346198836,1734773449420,-500.0,0.00019178,2]
[346198837,1734773449430,-505.13858021,0.00019178,2]
[346198838,1734773449440,-500.0,0.00019178,2]
[346198839,1734773449450,-1509.18,0.00019178,2]
[346198840,1734773449459,-500.0,0.00019178,2]
[346198841,1734773449468,-500.0,0.00019178,2]
[346198842,1734773449477,-500.0,0.00019178,2]
[346198843,1734773449487,-500.0,0.00019178,2]
[346198844,1734773449496,-4000.0,0.00019178,2]
[346198845,1734773449506,-1120.6060374,0.000192,2]
[346198846,1734773449516,-396.7151595,0.000192,2]
[346198847,1734773449526,-171.20183795,0.000192,2]
[346198848,1734773449535,-258.8314808,0.000192,2]
[346198849,1734773449546,-1116.76,0.000192,2]
[346198850,1734773449557,-167.81,0.00019235,2]
[346198851,1734773449567,-3000.0,0.0001926,2]
[346198852,1734773449576,-1120.6060374,0.00019261,2]
[346198853,1734773449586,-500.0,0.00019273,2]